[Event "*** SCC Grand Prix: Titled Tuesday Blitz"]
[Site "Chess.com"]
[Date "2020.08.11"]
[Round "7"]
[White "AniJak"]
[Black "Sergey85Rodchenkov"]
[Result "1/2-1/2"]
[WhiteElo "2342"]
[BlackElo "2472"]
[TimeControl "180+1"]
[EndTime "11:18:12 PDT"]
[Termination "Game drawn by repetition"]

1. e4 {[%clk 0:03:00.9]} 1... c5 {[%clk 0:02:59.6]} 2. Nc3 {[%clk 0:03:01.3]}
2... e6 {[%clk 0:02:59.1]} 3. g3 {[%clk 0:03:02.2]} 3... d5 {[%clk 0:02:58.7]}
4. exd5 {[%clk 0:03:01.8]} 4... exd5 {[%clk 0:02:58.6]} 5. d4 {[%clk 0:03:02.3]}
5... Nc6 {[%clk 0:02:57.2]} 6. Be3 {[%clk 0:02:53.1]} 6... Nf6 {[%clk
0:02:54.5]} 7. Bb5 {[%clk 0:02:51.6]} 7... Bg4 {[%clk 0:02:45.2]} 8. f3 {[%clk
0:02:46.4]} 8... Be6 {[%clk 0:02:43.6]} 9. Nge2 {[%clk 0:02:45.7]} 9... Qb6
{[%clk 0:02:40.9]} 10. O-O {[%clk 0:02:41.7]} 10... Rc8 {[%clk 0:02:37.8]} 11.
Kg2 {[%clk 0:02:37.1]} 11... cxd4 {[%clk 0:02:16.6]} 12. Nxd4 {[%clk 0:02:35.4]}
12... Bc5 {[%clk 0:02:16.9]} 13. Bxc6+ {[%clk 0:02:28.6]} 13... Rxc6 {[%clk
0:02:13.3]} 14. Nxc6 {[%clk 0:02:22.3]} 14... Qxc6 {[%clk 0:02:11]} 15. Bxc5
{[%clk 0:02:19.8]} 15... Qxc5 {[%clk 0:02:11.2]} 16. Re1 {[%clk 0:02:18.8]}
16... O-O {[%clk 0:02:10.4]} 17. Qd3 {[%clk 0:02:16.1]} 17... Rc8 {[%clk
0:02:09]} 18. Rad1 {[%clk 0:02:14.1]} 18... a6 {[%clk 0:02:08.2]} 19. Rd2 {[%clk
0:02:09.7]} 19... h6 {[%clk 0:02:06.1]} 20. Ne2 {[%clk 0:02:08.8]} 20... Qb6
{[%clk 0:01:58.1]} 21. b3 {[%clk 0:02:05.8]} 21... Nd7 {[%clk 0:01:42.7]} 22.
Nf4 {[%clk 0:02:02.3]} 22... Nc5 {[%clk 0:01:42.3]} 23. Qe3 {[%clk 0:01:57.1]}
23... Qc6 {[%clk 0:01:16.6]} 24. a3 {[%clk 0:01:44.7]} 24... Re8 {[%clk
0:01:10.8]} 25. Kg1 {[%clk 0:01:31.2]} 25... b5 {[%clk 0:01:00.5]} 26. Nxd5
{[%clk 0:01:19.9]} 26... Qc8 {[%clk 0:00:38.1]} 27. Rde2 {[%clk 0:00:55.8]}
27... Kh8 {[%clk 0:00:33]} 28. Nf4 {[%clk 0:00:52.9]} 28... Rd8 {[%clk
0:00:31.4]} 29. Nxe6 {[%clk 0:00:45]} 29... Nxe6 {[%clk 0:00:30.8]} 30. Rd2
{[%clk 0:00:43.6]} 30... Re8 {[%clk 0:00:29.5]} 31. Qf2 {[%clk 0:00:42.4]} 31...
Qc3 {[%clk 0:00:26.6]} 32. Red1 {[%clk 0:00:40.6]} 32... Rc8 {[%clk 0:00:22.9]}
33. f4 {[%clk 0:00:38.5]} 33... Qf6 {[%clk 0:00:21.3]} 34. f5 {[%clk 0:00:37.8]}
34... Ng5 {[%clk 0:00:20.6]} 35. Rd6 {[%clk 0:00:29.1]} 35... Nh3+ {[%clk
0:00:18.5]} 36. Kg2 {[%clk 0:00:27.6]} 36... Nxf2 {[%clk 0:00:18.8]} 37. Rxf6
{[%clk 0:00:27.7]} 37... gxf6 {[%clk 0:00:18.9]} 38. Kxf2 {[%clk 0:00:26.9]}
38... Rxc2+ {[%clk 0:00:19.5]} 39. Ke3 {[%clk 0:00:26]} 39... Rxh2 {[%clk
0:00:18.9]} 40. Rd6 {[%clk 0:00:25.9]} 40... Rb2 {[%clk 0:00:18]} 41. Rxf6
{[%clk 0:00:25.4]} 41... Rxb3+ {[%clk 0:00:17.7]} 42. Kf4 {[%clk 0:00:25.3]}
42... Rxa3 {[%clk 0:00:17.3]} 43. Rxh6+ {[%clk 0:00:25.3]} 43... Kg7 {[%clk
0:00:18]} 44. Rb6 {[%clk 0:00:25]} 44... f6 {[%clk 0:00:12.2]} 45. g4 {[%clk
0:00:24.8]} 45... Kf7 {[%clk 0:00:12.3]} 46. Rb7+ {[%clk 0:00:24.8]} 46... Kf8
{[%clk 0:00:12.4]} 47. Rb6 {[%clk 0:00:24.9]} 47... Ke7 {[%clk 0:00:12.7]} 48.
Rb7+ {[%clk 0:00:25.1]} 48... Kf8 {[%clk 0:00:12.5]} 49. Rb6 {[%clk 0:00:25.3]}
49... Ra4+ {[%clk 0:00:11.1]} 50. Kf3 {[%clk 0:00:25.1]} 50... Ke7 {[%clk
0:00:11.4]} 51. Rb7+ {[%clk 0:00:24.6]} 51... Kd6 {[%clk 0:00:11.2]} 52. Rb6+
{[%clk 0:00:24.6]} 52... Ke7 {[%clk 0:00:09.4]} 53. Rb7+ {[%clk 0:00:24.8]}
53... Kd6 {[%clk 0:00:09]} 54. Rb6+ {[%clk 0:00:25.1]} 54... Ke7 {[%clk
0:00:09]} 1/2-1/2

[Event "*** SCC Grand Prix: Titled Tuesday Blitz"]
[Site "Chess.com"]
[Date "2020.08.11"]
[Round "7"]
[White "eCztery"]
[Black "Dinamo81"]
[Result "1-0"]
[WhiteElo "2436"]
[BlackElo "2618"]
[TimeControl "180+1"]
[EndTime "11:18:14 PDT"]
[Termination "eCztery won on time"]

1. e4 {[%clk 0:02:58.6]} 1... c6 {[%clk 0:02:59.3]} 2. Nc3 {[%clk 0:02:50.9]}
2... d6 {[%clk 0:02:53.8]} 3. d4 {[%clk 0:02:47.1]} 3... Nf6 {[%clk 0:02:46.5]}
4. Bd3 {[%clk 0:02:45.5]} 4... e5 {[%clk 0:02:42.7]} 5. dxe5 {[%clk 0:02:40.1]}
5... dxe5 {[%clk 0:02:41.7]} 6. Nge2 {[%clk 0:02:35.1]} 6... Be6 {[%clk
0:02:35]} 7. O-O {[%clk 0:02:33]} 7... Nbd7 {[%clk 0:02:33.6]} 8. f4 {[%clk
0:02:28.8]} 8... Bc5+ {[%clk 0:02:31.9]} 9. Kh1 {[%clk 0:02:27.2]} 9... exf4
{[%clk 0:01:51.4]} 10. Bxf4 {[%clk 0:02:20.1]} 10... Ng4 {[%clk 0:01:45.4]} 11.
Qe1 {[%clk 0:02:15]} 11... Qe7 {[%clk 0:01:25.8]} 12. Qg3 {[%clk 0:02:05.8]}
12... h5 {[%clk 0:01:25]} 13. e5 {[%clk 0:01:22.8]} 13... g5 {[%clk 0:01:23]}
14. Bd2 {[%clk 0:01:14.9]} 14... h4 {[%clk 0:01:13]} 15. Qf3 {[%clk 0:01:09.1]}
15... Ndxe5 {[%clk 0:01:12.6]} 16. Qe4 {[%clk 0:01:06.8]} 16... O-O-O {[%clk
0:00:58.3]} 17. b4 {[%clk 0:00:46.3]} 17... h3 {[%clk 0:00:49.5]} 18. bxc5
{[%clk 0:00:18.6]} 18... hxg2+ {[%clk 0:00:48.5]} 19. Qxg2 {[%clk 0:00:19.5]}
19... Rxh2+ {[%clk 0:00:46.7]} 20. Qxh2 {[%clk 0:00:20.4]} 20... Nxh2 {[%clk
0:00:47.1]} 21. Kxh2 {[%clk 0:00:20.9]} 21... Rh8+ {[%clk 0:00:43.2]} 22. Kg3
{[%clk 0:00:18.9]} 22... Nxd3 {[%clk 0:00:40.1]} 23. cxd3 {[%clk 0:00:18.5]}
23... Qc7+ {[%clk 0:00:37.7]} 24. Kf2 {[%clk 0:00:17.3]} 24... Qe5 {[%clk
0:00:23.1]} 25. d4 {[%clk 0:00:16.6]} 25... Qg7 {[%clk 0:00:18.5]} 26. Ke1
{[%clk 0:00:16.9]} 26... Re8 {[%clk 0:00:16.1]} 27. Ne4 {[%clk 0:00:16.9]} 27...
Re7 {[%clk 0:00:12.9]} 28. Nd6+ {[%clk 0:00:17.2]} 28... Kd7 {[%clk 0:00:12.7]}
29. Rb1 {[%clk 0:00:18]} 29... b5 {[%clk 0:00:10.2]} 30. cxb6 {[%clk 0:00:18.9]}
30... axb6 {[%clk 0:00:09.7]} 31. Ne4 {[%clk 0:00:17]} 31... Bd5 {[%clk
0:00:08.3]} 32. Nf6+ {[%clk 0:00:16]} 32... Kc7 {[%clk 0:00:07.6]} 33. Nxd5+
{[%clk 0:00:16]} 33... cxd5 {[%clk 0:00:08.5]} 34. Kd1 {[%clk 0:00:16]} 34...
Qg6 {[%clk 0:00:07.6]} 35. Nc3 {[%clk 0:00:15.8]} 35... Kb7 {[%clk 0:00:04.7]}
36. Kc1 {[%clk 0:00:16]} 36... Rc7 {[%clk 0:00:04.1]} 37. Kb2 {[%clk 0:00:15.4]}
37... Qc6 {[%clk 0:00:02.2]} 38. Ka1 {[%clk 0:00:15.4]} 1-0

[Event "*** SCC Grand Prix: Titled Tuesday Blitz"]
[Site "Chess.com"]
[Date "2020.08.11"]
[Round "7"]
[White "Grieve72"]
[Black "Alex_Belezky"]
[Result "1-0"]
[WhiteElo "2372"]
[BlackElo "2460"]
[TimeControl "180+1"]
[EndTime "11:18:14 PDT"]
[Termination "Grieve72 won by resignation"]

1. e4 {[%clk 0:03:00.9]} 1... c5 {[%clk 0:02:41]} 2. Nf3 {[%clk 0:03:00.5]} 2...
d6 {[%clk 0:02:40.9]} 3. d4 {[%clk 0:03:01]} 3... cxd4 {[%clk 0:02:41.2]} 4.
Nxd4 {[%clk 0:03:01.9]} 4... Nf6 {[%clk 0:02:41.5]} 5. Nc3 {[%clk 0:03:02.4]}
5... g6 {[%clk 0:02:42]} 6. Be3 {[%clk 0:03:02]} 6... a6 {[%clk 0:02:41.7]} 7.
f3 {[%clk 0:02:58.8]} 7... h5 {[%clk 0:02:41.7]} 8. Qd2 {[%clk 0:02:49.3]} 8...
Nbd7 {[%clk 0:02:41.3]} 9. h3 {[%clk 0:02:40.2]} 9... Qc7 {[%clk 0:02:35]} 10.
O-O-O {[%clk 0:02:37.5]} 10... b5 {[%clk 0:02:33.8]} 11. Bd3 {[%clk 0:02:34.2]}
11... Bb7 {[%clk 0:02:33.4]} 12. g4 {[%clk 0:02:33.5]} 12... Ne5 {[%clk
0:02:32.9]} 13. g5 {[%clk 0:02:22.6]} 13... Nfd7 {[%clk 0:02:32.8]} 14. f4
{[%clk 0:02:22.7]} 14... Nc4 {[%clk 0:02:29.9]} 15. Bxc4 {[%clk 0:02:22.7]}
15... Qxc4 {[%clk 0:02:28.9]} 16. Nb3 {[%clk 0:01:56.9]} 16... Bg7 {[%clk
0:02:16.6]} 17. Rhe1 {[%clk 0:01:21.3]} 17... Bxc3 {[%clk 0:02:07.5]} 18. Qxc3
{[%clk 0:01:09.7]} 18... Qxc3 {[%clk 0:02:06.9]} 19. bxc3 {[%clk 0:01:10.6]}
19... O-O-O {[%clk 0:02:04.6]} 20. Bf2 {[%clk 0:00:57.2]} 20... Nb8 {[%clk
0:01:53.3]} 21. Na5 {[%clk 0:00:51.4]} 21... Nc6 {[%clk 0:01:51.8]} 22. Bb6
{[%clk 0:00:40.5]} 22... Nxa5 {[%clk 0:01:47.4]} 23. Bxa5 {[%clk 0:00:41.4]}
23... Rd7 {[%clk 0:01:47.1]} 24. h4 {[%clk 0:00:33.9]} 24... Re8 {[%clk
0:01:42]} 25. e5 {[%clk 0:00:32.6]} 25... dxe5 {[%clk 0:01:29.7]} 26. Rxe5
{[%clk 0:00:32.1]} 26... Rxd1+ {[%clk 0:01:26.2]} 27. Kxd1 {[%clk 0:00:33]}
27... Bf3+ {[%clk 0:01:24]} 28. Kd2 {[%clk 0:00:32.3]} 28... e6 {[%clk
0:01:21.5]} 29. Rc5+ {[%clk 0:00:28.9]} 29... Kb8 {[%clk 0:01:19.2]} 30. Rc7
{[%clk 0:00:17.9]} 30... Rf8 {[%clk 0:01:16.1]} 31. Re7 {[%clk 0:00:14.2]} 31...
Bc6 {[%clk 0:01:09.2]} 32. Ke3 {[%clk 0:00:13.8]} 32... Bd5 {[%clk 0:01:05.3]}
33. a3 {[%clk 0:00:13.6]} 33... Bb7 {[%clk 0:00:38.4]} 34. Kd4 {[%clk
0:00:12.5]} 34... Rc8 {[%clk 0:00:23.3]} 35. Rxf7 {[%clk 0:00:11.2]} 35... Bf3
{[%clk 0:00:19.9]} 36. Ke5 {[%clk 0:00:08.7]} 36... Bg4 {[%clk 0:00:19.6]} 37.
Kf6 {[%clk 0:00:08.9]} 37... Bf5 {[%clk 0:00:19.9]} 38. Bb4 {[%clk 0:00:07.6]}
38... Bxc2 {[%clk 0:00:18.8]} 39. Bd6+ {[%clk 0:00:05.7]} 39... Ka8 {[%clk
0:00:18.8]} 40. Ke7 {[%clk 0:00:05.9]} 40... Bf5 {[%clk 0:00:18]} 41. Be5 {[%clk
0:00:06]} 41... Kb7 {[%clk 0:00:16.6]} 42. Kd6+ {[%clk 0:00:06.2]} 42... Kb6
{[%clk 0:00:16.5]} 43. Bd4+ {[%clk 0:00:03.4]} 43... Ka5 {[%clk 0:00:16.4]} 44.
Rd7 {[%clk 0:00:02.8]} 44... e5 {[%clk 0:00:15.3]} 45. fxe5 {[%clk 0:00:02.3]}
45... Bxd7 {[%clk 0:00:15.2]} 46. Kxd7 {[%clk 0:00:03.2]} 46... Rf8 {[%clk
0:00:14.5]} 47. e6 {[%clk 0:00:03.8]} 47... Rf4 {[%clk 0:00:14.9]} 48. e7 {[%clk
0:00:04.3]} 48... Re4 {[%clk 0:00:15.4]} 49. e8=Q {[%clk 0:00:04.8]} 49... Rxe8
{[%clk 0:00:15.4]} 50. Kxe8 {[%clk 0:00:05.7]} 50... Ka4 {[%clk 0:00:16]} 51.
Bc5 {[%clk 0:00:06.3]} 51... Kb3 {[%clk 0:00:16.4]} 52. Bb4 {[%clk 0:00:06.8]}
1-0

[Event "*** SCC Grand Prix: Titled Tuesday Blitz"]
[Site "Chess.com"]
[Date "2020.08.11"]
[Round "7"]
[White "Leonid_Starozhilov"]
[Black "dopolian"]
[Result "1/2-1/2"]
[WhiteElo "2698"]
[BlackElo "2537"]
[TimeControl "180+1"]
[EndTime "11:18:16 PDT"]
[Termination "Game drawn by repetition"]

1. c4 {[%clk 0:03:00.9]} 1... Nf6 {[%clk 0:03:00.2]} 2. Nf3 {[%clk 0:03:00.5]}
2... g6 {[%clk 0:02:58.8]} 3. g3 {[%clk 0:03:00.9]} 3... Bg7 {[%clk 0:02:59.2]}
4. Bg2 {[%clk 0:03:01.4]} 4... O-O {[%clk 0:03:00.1]} 5. O-O {[%clk 0:03:02.1]}
5... c5 {[%clk 0:03:00.5]} 6. Nc3 {[%clk 0:03:02.2]} 6... d5 {[%clk 0:02:58.7]}
7. d3 {[%clk 0:02:59.2]} 7... Nc6 {[%clk 0:02:56.2]} 8. Bf4 {[%clk 0:02:58.2]}
8... dxc4 {[%clk 0:02:53.1]} 9. dxc4 {[%clk 0:02:58.2]} 9... Be6 {[%clk
0:02:53.8]} 10. b3 {[%clk 0:02:34]} 10... Qxd1 {[%clk 0:02:47.4]} 11. Raxd1
{[%clk 0:02:33.6]} 11... Rfd8 {[%clk 0:02:48]} 12. Ne5 {[%clk 0:02:27.9]} 12...
Rxd1 {[%clk 0:02:21.1]} 13. Rxd1 {[%clk 0:02:27.1]} 13... Nh5 {[%clk 0:02:18.9]}
14. Nxc6 {[%clk 0:02:17.8]} 14... bxc6 {[%clk 0:02:19.1]} 15. Na4 {[%clk
0:01:51.1]} 15... Nxf4 {[%clk 0:02:17.4]} 16. gxf4 {[%clk 0:01:52]} 16... Bg4
{[%clk 0:01:50.1]} 17. Rd2 {[%clk 0:01:39]} 17... Rc8 {[%clk 0:01:16]} 18. e3
{[%clk 0:01:35.8]} 18... h5 {[%clk 0:00:53.8]} 19. Nxc5 {[%clk 0:01:31.5]} 19...
h4 {[%clk 0:00:53.5]} 20. h3 {[%clk 0:01:01.2]} 20... Bf5 {[%clk 0:00:43.7]} 21.
Kh2 {[%clk 0:00:46.5]} 21... e5 {[%clk 0:00:39.5]} 22. fxe5 {[%clk 0:00:30.6]}
22... Bxe5+ {[%clk 0:00:40.4]} 23. Kg1 {[%clk 0:00:27.5]} 23... a5 {[%clk
0:00:29.2]} 24. Bf1 {[%clk 0:00:25.9]} 24... Kf8 {[%clk 0:00:27.7]} 25. Kg2
{[%clk 0:00:20.7]} 25... Ke7 {[%clk 0:00:27.5]} 26. Be2 {[%clk 0:00:15.9]} 26...
Bd6 {[%clk 0:00:24.1]} 27. Na4 {[%clk 0:00:13.4]} 27... Bb4 {[%clk 0:00:20]} 28.
Rd4 {[%clk 0:00:13.5]} 28... c5 {[%clk 0:00:16.5]} 29. Rd1 {[%clk 0:00:08.3]}
29... Bc2 {[%clk 0:00:12.9]} 30. Rc1 {[%clk 0:00:07.1]} 30... Be4+ {[%clk
0:00:12.9]} 31. f3 {[%clk 0:00:03.3]} 31... Bc6 {[%clk 0:00:11.6]} 32. Nb6
{[%clk 0:00:02.2]} 32... Rd8 {[%clk 0:00:12]} 33. Nd5+ {[%clk 0:00:02.8]} 33...
Bxd5 {[%clk 0:00:11.9]} 34. cxd5 {[%clk 0:00:03.7]} 34... Rxd5 {[%clk
0:00:12.5]} 35. Rc2 {[%clk 0:00:04.3]} 35... Rd2 {[%clk 0:00:09.5]} 36. Rxd2
{[%clk 0:00:04.3]} 36... Bxd2 {[%clk 0:00:10.4]} 37. Kf2 {[%clk 0:00:04.7]}
37... Kd6 {[%clk 0:00:09.8]} 38. f4 {[%clk 0:00:04.9]} 38... f6 {[%clk
0:00:08.8]} 39. Bd3 {[%clk 0:00:04.4]} 39... g5 {[%clk 0:00:08.7]} 40. fxg5
{[%clk 0:00:04.2]} 40... fxg5 {[%clk 0:00:09.6]} 41. Ke2 {[%clk 0:00:04.9]}
41... Bc3 {[%clk 0:00:08.4]} 42. Kf3 {[%clk 0:00:04.6]} 42... Bf6 {[%clk
0:00:05.1]} 43. a4 {[%clk 0:00:04.6]} 43... Ke5 {[%clk 0:00:04.6]} 44. Kg4
{[%clk 0:00:04.6]} 44... Bd8 {[%clk 0:00:04.5]} 45. Kf3 {[%clk 0:00:04.7]} 45...
Bf6 {[%clk 0:00:04.5]} 46. Bc4 {[%clk 0:00:05.5]} 46... Bd8 {[%clk 0:00:04.7]}
47. Kg4 {[%clk 0:00:06.1]} 47... Bf6 {[%clk 0:00:04.8]} 48. Kf3 {[%clk
0:00:06.2]} 48... Bd8 {[%clk 0:00:04.9]} 49. Bb5 {[%clk 0:00:07.1]} 49... Bf6
{[%clk 0:00:05.1]} 50. Bc4 {[%clk 0:00:06.9]} 1/2-1/2

[Event "*** SCC Grand Prix: Titled Tuesday Blitz"]
[Site "Chess.com"]
[Date "2020.08.11"]
[Round "7"]
[White "beto-betun"]
[Black "KaspMagAlpha"]
[Result "1-0"]
[WhiteElo "2149"]
[BlackElo "2170"]
[TimeControl "180+1"]
[EndTime "11:18:17 PDT"]
[Termination "beto-betun won on time"]

1. d4 {[%clk 0:03:00.9]} 1... Nf6 {[%clk 0:02:59.5]} 2. Nf3 {[%clk 0:03:00.3]}
2... d5 {[%clk 0:02:58.7]} 3. c4 {[%clk 0:02:57.3]} 3... e6 {[%clk 0:02:58]} 4.
Nc3 {[%clk 0:02:49]} 4... Be7 {[%clk 0:02:57.6]} 5. g3 {[%clk 0:02:48.3]} 5...
O-O {[%clk 0:02:57.4]} 6. Bg2 {[%clk 0:02:44.9]} 6... b6 {[%clk 0:02:57.1]} 7.
b3 {[%clk 0:02:41.6]} 7... Bb7 {[%clk 0:02:57]} 8. O-O {[%clk 0:02:35]} 8...
Nbd7 {[%clk 0:02:56.7]} 9. Bb2 {[%clk 0:02:30.7]} 9... Rc8 {[%clk 0:02:56.1]}
10. cxd5 {[%clk 0:02:23.7]} 10... exd5 {[%clk 0:02:55.8]} 11. Rc1 {[%clk
0:02:16.9]} 11... c5 {[%clk 0:02:55.2]} 12. dxc5 {[%clk 0:02:06.8]} 12... bxc5
{[%clk 0:02:55]} 13. Nh4 {[%clk 0:01:55.3]} 13... Nb6 {[%clk 0:02:52.9]} 14. Nf5
{[%clk 0:01:35.1]} 14... Re8 {[%clk 0:02:46.4]} 15. Nxe7+ {[%clk 0:01:30.8]}
15... Rxe7 {[%clk 0:02:46.4]} 16. e3 {[%clk 0:01:23.9]} 16... Rd7 {[%clk
0:02:44.1]} 17. Ne2 {[%clk 0:01:20]} 17... Ba6 {[%clk 0:02:42.6]} 18. Re1 {[%clk
0:01:19.5]} 18... d4 {[%clk 0:02:37.4]} 19. exd4 {[%clk 0:01:16]} 19... Bxe2
{[%clk 0:02:26.9]} 20. Rxe2 {[%clk 0:01:16.2]} 20... cxd4 {[%clk 0:02:26.4]} 21.
Rxc8 {[%clk 0:01:13.1]} 21... Qxc8 {[%clk 0:02:26.3]} 22. Rd2 {[%clk 0:01:11.8]}
22... Qa6 {[%clk 0:01:50.3]} 23. Rxd4 {[%clk 0:01:01.3]} 23... Qxa2 {[%clk
0:01:41.7]} 24. Rxd7 {[%clk 0:00:48.8]} 24... Nfxd7 {[%clk 0:01:39]} 25. Qd4
{[%clk 0:00:44.5]} 25... Qb1+ {[%clk 0:01:26.3]} 26. Bf1 {[%clk 0:00:44.7]}
26... Qg6 {[%clk 0:01:13.7]} 27. Bb5 {[%clk 0:00:41.3]} 27... Nf8 {[%clk
0:01:01.4]} 28. Kg2 {[%clk 0:00:38.1]} 28... h6 {[%clk 0:00:57.6]} 29. h4 {[%clk
0:00:37.3]} 29... Ne6 {[%clk 0:00:55.7]} 30. Qe5 {[%clk 0:00:30.2]} 30... Qc2
{[%clk 0:00:32.4]} 31. Be2 {[%clk 0:00:18.2]} 31... Qxb3 {[%clk 0:00:27.8]} 32.
Bg4 {[%clk 0:00:12.8]} 32... Qd5+ {[%clk 0:00:25.6]} 33. Qxd5 {[%clk 0:00:10.3]}
33... Nxd5 {[%clk 0:00:26.5]} 34. Bf3 {[%clk 0:00:10.5]} 34... Ndc7 {[%clk
0:00:26]} 35. Bc3 {[%clk 0:00:08.9]} 35... Kf8 {[%clk 0:00:25.7]} 36. Ba5 {[%clk
0:00:09.3]} 36... Ke7 {[%clk 0:00:25.6]} 37. Bd2 {[%clk 0:00:09.9]} 37... Kd7
{[%clk 0:00:25.8]} 38. Be3 {[%clk 0:00:10.5]} 38... a6 {[%clk 0:00:25.3]} 39.
Be2 {[%clk 0:00:10.9]} 39... Nb5 {[%clk 0:00:25.5]} 40. Bd2 {[%clk 0:00:10.6]}
40... Nec7 {[%clk 0:00:26.3]} 41. Bb4 {[%clk 0:00:10]} 41... g6 {[%clk
0:00:25.4]} 42. Bc4 {[%clk 0:00:09.9]} 42... h5 {[%clk 0:00:25.7]} 43. Bxf7
{[%clk 0:00:09.6]} 43... Kc6 {[%clk 0:00:06.5]} 44. Bxg6 {[%clk 0:00:09.5]}
44... Kb6 {[%clk 0:00:06.2]} 45. Bd2 {[%clk 0:00:09.8]} 45... a5 {[%clk
0:00:06.8]} 46. Bxh5 {[%clk 0:00:10.4]} 46... a4 {[%clk 0:00:07.1]} 47. Bd1
{[%clk 0:00:11]} 47... a3 {[%clk 0:00:06.9]} 48. Bc1 {[%clk 0:00:11.5]} 48... a2
{[%clk 0:00:06.9]} 49. Bb2 {[%clk 0:00:11.9]} 49... Nd5 {[%clk 0:00:02.6]} 50.
h5 {[%clk 0:00:12.6]} 50... Nb4 {[%clk 0:00:01.5]} 51. h6 {[%clk 0:00:13.4]} 1-0

[Event "*** SCC Grand Prix: Titled Tuesday Blitz"]
[Site "Chess.com"]
[Date "2020.08.11"]
[Round "7"]
[White "Tactictic"]
[Black "TregubovP"]
[Result "0-1"]
[WhiteElo "2377"]
[BlackElo "2590"]
[TimeControl "180+1"]
[EndTime "11:18:19 PDT"]
[Termination "TregubovP won by resignation"]

1. e4 {[%clk 0:03:00.9]} 1... e6 {[%clk 0:03:00.2]} 2. d4 {[%clk 0:02:54]} 2...
d5 {[%clk 0:03:00.4]} 3. Nd2 {[%clk 0:02:51.7]} 3... c5 {[%clk 0:02:59.6]} 4.
exd5 {[%clk 0:02:49.4]} 4... exd5 {[%clk 0:02:59.1]} 5. Ngf3 {[%clk 0:02:43.9]}
5... Nc6 {[%clk 0:02:59.4]} 6. dxc5 {[%clk 0:02:43.3]} 6... Bxc5 {[%clk
0:02:58.3]} 7. Bd3 {[%clk 0:02:33.4]} 7... Qe7+ {[%clk 0:02:56.2]} 8. Qe2 {[%clk
0:02:31.3]} 8... Qxe2+ {[%clk 0:02:56.1]} 9. Kxe2 {[%clk 0:02:29]} 9... Nf6
{[%clk 0:02:44.6]} 10. Nb3 {[%clk 0:02:28.1]} 10... Bb6 {[%clk 0:02:42.4]} 11.
Be3 {[%clk 0:02:21.2]} 11... Bxe3 {[%clk 0:02:37.2]} 12. fxe3 {[%clk 0:02:22.1]}
12... O-O {[%clk 0:02:32.2]} 13. Nbd4 {[%clk 0:02:18.8]} 13... Re8 {[%clk
0:02:30.8]} 14. Nxc6 {[%clk 0:02:08.1]} 14... bxc6 {[%clk 0:02:30.3]} 15. Kd2
{[%clk 0:02:08.4]} 15... Ne4+ {[%clk 0:02:21.7]} 16. Bxe4 {[%clk 0:02:07.9]}
16... Rxe4 {[%clk 0:02:21.1]} 17. Rae1 {[%clk 0:01:58.9]} 17... c5 {[%clk
0:02:19]} 18. Kc1 {[%clk 0:01:56.9]} 18... Bf5 {[%clk 0:02:08.4]} 19. Rhf1
{[%clk 0:01:43.6]} 19... Bg6 {[%clk 0:02:06.7]} 20. Kd2 {[%clk 0:01:20.5]} 20...
f6 {[%clk 0:02:05.4]} 21. Re2 {[%clk 0:01:14.9]} 21... Rb8 {[%clk 0:02:02.6]}
22. b3 {[%clk 0:01:14.2]} 22... a5 {[%clk 0:02:02.7]} 23. h3 {[%clk 0:01:11.2]}
23... h5 {[%clk 0:01:57.4]} 24. Ne1 {[%clk 0:01:05.7]} 24... h4 {[%clk
0:01:43.6]} 25. Rf4 {[%clk 0:01:01.2]} 25... Rbe8 {[%clk 0:01:31.8]} 26. Nf3
{[%clk 0:00:28.1]} 26... Bh5 {[%clk 0:01:31]} 27. Re1 {[%clk 0:00:28.2]} 27...
Bxf3 {[%clk 0:01:14.4]} 28. Rxf3 {[%clk 0:00:11.7]} 28... Kf7 {[%clk 0:01:08.8]}
29. Kd3 {[%clk 0:00:11.8]} 29... c4+ {[%clk 0:01:01.2]} 30. Kd2 {[%clk
0:00:10.9]} 30... Ke6 {[%clk 0:00:46.2]} 31. Rf4 {[%clk 0:00:10.6]} 31... Kd6
{[%clk 0:00:44]} 32. Rxe4 {[%clk 0:00:08.3]} 32... Rxe4 {[%clk 0:00:41]} 33. Rf1
{[%clk 0:00:08.9]} 33... Ke5 {[%clk 0:00:37.8]} 34. a4 {[%clk 0:00:07.2]} 34...
g5 {[%clk 0:00:36.3]} 35. Rf3 {[%clk 0:00:06.3]} 35... f5 {[%clk 0:00:33.7]} 36.
Ke2 {[%clk 0:00:02.9]} 36... cxb3 {[%clk 0:00:31.8]} 37. cxb3 {[%clk 0:00:02.7]}
37... Rb4 {[%clk 0:00:32.4]} 38. e4 {[%clk 0:00:01.7]} 38... fxe4 {[%clk
0:00:28.7]} 39. Rc3 {[%clk 0:00:01.9]} 39... Kf4 {[%clk 0:00:21.1]} 40. Rc5
{[%clk 0:00:01.8]} 40... d4 {[%clk 0:00:17.7]} 41. Rxa5 {[%clk 0:00:01.8]} 41...
Rxb3 {[%clk 0:00:16.9]} 42. Rd5 {[%clk 0:00:01.9]} 42... d3+ {[%clk 0:00:15.5]}
43. Kd2 {[%clk 0:00:01.9]} 43... Rb2+ {[%clk 0:00:15.6]} 44. Kc3 {[%clk
0:00:02.1]} 44... Rc2+ {[%clk 0:00:14.9]} 45. Kb3 {[%clk 0:00:02.7]} 45... Ke3
{[%clk 0:00:14.6]} 46. a5 {[%clk 0:00:02.6]} 46... Rc1 {[%clk 0:00:12.9]} 47. a6
{[%clk 0:00:02.8]} 47... Ra1 {[%clk 0:00:12.8]} 48. Rd6 {[%clk 0:00:01.5]} 48...
d2 {[%clk 0:00:12.6]} 49. Kb2 {[%clk 0:00:01.4]} 49... d1=Q {[%clk 0:00:11.9]}
50. Rxd1 {[%clk 0:00:01.1]} 50... Rxd1 {[%clk 0:00:12.4]} 51. a7 {[%clk
0:00:02]} 51... Rd8 {[%clk 0:00:12.2]} 0-1